bitfinex-derivatives/quotes_ETHF0:USTF0_20210110
["timestamp","ask_amount","ask_price","bid_price","bid_amount"]
[1610319254303,60.7112,1275.0,1274.4,1.20295781]
[1610319254904,64.72079,1275.0,1274.7,4.00959]
[1610319255704,64.72079,1275.0,1274.8,1.20307508]
[1610319255905,5.97849,1275.0,1274.8,1.20307508]
[1610319258811,1.9689,1275.0,1274.9,4.00959]
[1610319259311,1.6322,1275.3,1274.9,4.00959]
[1610319259915,4.00959,1275.4,1274.9,5.21264773]
[1610319261415,4.00959,1275.4,1275.0,1.20311053]
[1610319263016,4.00959,1275.4,1275.1,4.00959]
[1610319264618,4.00959,1275.4,1275.2,1.20304234]
[1610319266920,5.6097,1275.6,1275.3,4.00959]
[1610319268422,3.405,1275.6,1275.3,4.00959]
[1610319269022,3.405,1275.6,1275.5,4.00959]
[1610319269522,53.5652,1275.8,1275.5,4.00959]
[1610319269724,53.5652,1275.8,1275.4,1.20260957]
[1610319269923,55.463,1275.8,1275.4,1.20260957]
[1610319270323,55.463,1275.8,1275.6,1.20263975]
[1610319270925,4.00959,1275.7,1275.6,1.20263975]
[1610319271826,4.00959,1275.7,1275.3,1.20263684]
[1610319272929,55.463,1275.8,1275.3,1.20263684]
[1610319274732,1.8978,1275.8,1275.3,1.20263684]
[1610319274932,4.00959,1275.6,1275.3,1.20263684]
[1610319276936,4.00959,1275.4,1275.3,1.20263684]
[1610319277134,6.44509,1275.4,1275.3,1.20263684]
[1610319280336,6.44509,1275.4,1275.2,46.9521]
[1610319281639,6.44509,1275.4,1275.3,1.20294623]
[1610319285845,6.44509,1275.4,1274.9,1.20289622]
[1610319287044,4.00959,1275.0,1274.9,1.20289622]
[1610319287445,5.88139,1275.0,1274.9,1.20289622]
[1610319294354,5.88139,1275.0,1274.6,1.20300248]
[1610319296958,4.00959,1274.8,1274.6,1.20300248]
[1610319297358,1.8718,1275.0,1274.6,1.20300248]
[1610319297959,20.24475288,1275.4,1274.6,1.20300248]
[1610319298960,4.00959,1274.7,1274.6,1.20300248]
[1610319299260,5.86759,1274.7,1274.6,1.20300248]
[1610319300362,1.858,1274.7,1274.6,1.20300248]
[1610319300961,5.86759,1274.7,1274.6,1.20300248]
[1610319302962,12.54659,1274.7,1274.6,1.20300248]
[1610319303161,5.86759,1274.7,1274.6,1.20300248]
[1610319304563,35.86759,1274.7,1274.6,1.20300248]
[1610319304964,35.86759,1274.7,1273.8,1.20367272]
[1610319305566,17.70815152,1274.6,1273.8,1.20367272]
[1610319305767,47.69994958,1274.5,1273.8,1.20367272]
[1610319306165,30.0,1274.3,1273.8,1.20367272]
[1610319306365,30.0,1274.3,1273.2,1.20393477]
[1610319306366,47.69016769,1274.3,1273.2,1.20393477]
[1610319306566,53.46536769,1274.3,1273.2,1.20393477]
[1610319306966,4.00959,1273.3,1273.2,1.20393477]
[1610319307165,6.03499,1273.3,1273.2,1.20393477]
[1610319308067,6.03499,1273.3,1272.3,1.20423279]
[1610319309167,4.00959,1272.7,1272.3,1.20423279]
[1610319310367,4.00959,1272.7,1271.0,1.20459169]
[1610319310768,4.00959,1272.7,1271.0,1.44572145]
[1610319310968,2.3298,1273.0,1271.0,1.44572145]
[1610319311168,6.33939,1273.0,1272.3,4.00959]
[1610319311569,6.33939,1273.0,1272.0,1.8561]
[1610319313174,4.00959,1272.2,1272.1,1.20469051]
[1610319314574,4.00959,1272.2,1270.5,1.20521733]
[1610319315076,4.00959,1271.5,1271.1,4.00959]
[1610319315674,5.93649,1271.5,1270.5,1.20521733]
[1610319315873,5.93649,1271.5,1271.2,1.20560115]
[1610319317075,5.93649,1271.5,1270.8,4.00959]
[1610319317783,1.9269,1271.5,1270.8,4.00959]
[1610319318180,2.0089,1271.9,1270.8,4.00959]
[1610319318580,2.0089,1271.9,1270.9,1.20549336]
[1610319318781,2.0089,1271.9,1270.9,2.82999336]
[1610319318984,1.951,1272.4,1270.9,2.82999336]
[1610319319181,4.00959,1272.0,1270.9,2.82999336]
[1610319319782,4.00959,1272.0,1271.0,1.2056801]
[1610319321186,4.00959,1272.0,1271.5,4.00959]
[1610319321586,4.00959,1272.0,1271.0,1.2056801]
[1610319321786,62.53489,1272.0,1271.0,1.2056801]
[1610319323188,62.53489,1272.0,1271.1,4.00959]
[1610319324788,53.5432,1271.5,1271.1,4.00959]
[1610319324990,55.3704,1271.5,1271.1,4.00959]
[1610319325388,55.3704,1271.5,1271.2,1.20584015]
[1610319329594,55.3704,1271.5,1270.8,4.00959]
[1610319330195,55.3704,1271.5,1270.4,1.20584591]
[1610319331095,4.00959,1271.4,1270.4,1.20584591]
[1610319333197,4.00959,1271.2,1270.9,4.00959]
[1610319333598,55.3704,1271.5,1270.9,4.00959]
[1610319333998,55.3704,1271.5,1271.0,1.20593012]
[1610319334200,53.5432,1271.5,1271.0,1.20593012]
[1610319334399,53.5432,1271.5,1271.0,3.45753012]
[1610319335199,53.5432,1271.5,1271.4,4.00959]
[1610319335399,48.4924,1271.5,1271.4,5.83509]
[1610319335600,1.951,1272.4,1271.4,5.83509]
[1610319335798,60.706,1272.6,1271.4,5.83509]
[1610319336701,60.706,1272.6,1271.5,1.20568381]
[1610319337103,60.706,1272.6,1272.4,4.00959]
[1610319339106,51.1594,1273.3,1272.4,4.00959]
[1610319339306,17.56164734,1273.7,1272.4,4.00959]
[1610319339507,21.5797896,1273.8,1272.5,1.2047437]
[1610319339806,4.00959,1273.8,1272.5,1.2047437]
[1610319340206,21.58283281,1273.8,1272.5,1.2047437]
[1610319340607,17.55740408,1273.7,1272.5,1.2047437]
[1610319340806,19.27960408,1273.7,1272.5,1.2047437]
[1610319341206,4.00959,1273.2,1272.6,4.00959]
[1610319341406,5.91369,1273.2,1272.6,4.00959]
[1610319343307,4.00959,1273.0,1272.6,4.00959]
[1610319344209,4.00959,1273.0,1272.0,2.1522]
[1610319344410,4.00959,1273.0,1271.7,1.7233]
[1610319344611,4.00959,1273.0,1270.3,0.2412583]
[1610319345010,4.00959,1273.0,1272.1,1.20512711]
[1610319345211,4.00959,1272.5,1272.1,5.21471711]
[1610319346011,5.95429,1272.5,1272.1,5.21471711]
[1610319346611,5.95429,1272.5,1272.1,4.00959]
[1610319347211,4.00959,1272.3,1272.1,4.00959]
[1610319349316,1.9447,1272.5,1272.1,4.00959]
[1610319350918,4.00959,1272.7,1272.2,1.20546713]
[1610319351320,4.00959,1272.5,1272.2,1.20546713]
[1610319351519,6.12929,1272.5,1272.2,1.20546713]
[1610319352321,2.1197,1272.5,1272.2,1.20546713]
[1610319355229,6.12929,1272.5,1272.3,4.00959]
[1610319356328,2.1197,1272.5,1272.3,4.00959]
[1610319356530,2.0727,1272.8,1272.4,1.20542268]
[1610319356729,8.7151,1273.2,1272.4,1.20542268]
[1610319357229,4.00959,1272.7,1272.4,1.20542268]
[1610319357429,6.51399,1272.7,1272.4,1.20542268]
[1610319363338,2.5044,1272.7,1272.4,1.20542268]
[1610319363539,47.49339702,1273.1,1272.4,1.20542268]
[1610319363739,2.5113,1272.7,1272.3,4.00959]
[1610319364339,17.45416575,1272.6,1272.3,4.00959]
[1610319364738,17.45025291,1272.5,1272.3,4.00959]
[1610319365139,17.45025291,1272.5,1271.0,2.4098]
[1610319365339,17.44458538,1272.4,1271.0,2.4098]
[1610319365639,19.17268538,1272.4,1271.0,2.4098]
[1610319368543,19.17268538,1272.4,1271.1,1.20622537]
[1610319369743,17.43427812,1272.3,1271.1,1.20622537]
[1610319370145,19.16359856,1272.4,1271.1,1.20622537]
[1610319373254,17.44092382,1272.3,1271.1,1.20622537]
[1610319373654,19.17075745,1272.4,1271.1,1.20622537]
[1610319374054,19.17075745,1272.4,1271.2,1.20625817]
[1610319374357,1.7281,1272.4,1271.2,1.20625817]
[1610319374558,3.405,1272.5,1271.2,1.20625817]
[1610319379262,2.5113,1272.7,1271.2,1.20625817]
[1610319379463,26.20628795,1273.2,1271.2,1.20625817]
[1610319380064,8.7151,1273.2,1271.2,1.20625817]
[1610319380465,8.7151,1273.2,1271.3,1.20536663]
[1610319380665,1.9041,1273.2,1271.3,1.20536663]
[1610319381168,20.92533275,1273.5,1271.3,1.20536663]
[1610319381365,3.405,1273.5,1271.3,1.20536663]
[1610319381966,20.92777345,1273.5,1271.3,1.20536663]
[1610319382669,17.51336759,1273.4,1271.3,1.20536663]
[1610319382865,17.51336759,1273.4,1271.3,3.25346663]
[1610319383266,17.50918693,1273.3,1271.3,3.25346663]
[1610319384671,17.50918693,1273.3,1271.4,1.20553778]
[1610319385473,17.50918693,1273.3,1271.3,3.25346663]
[1610319385677,19.12128693,1273.3,1271.3,3.25346663]
[1610319386074,19.12128693,1273.3,1271.5,1.20543436]
[1610319386276,1.6121,1273.3,1271.5,1.20543436]
[1610319386473,19.15145952,1273.3,1271.5,1.20543436]
[1610319387083,17.54262947,1273.2,1271.5,1.20543436]
[1610319387582,17.54262947,1273.2,1271.4,1.20544586]
[1610319387782,19.15983059,1273.3,1271.4,1.20544586]
[1610319388482,17.55748361,1273.2,1271.4,1.20544586]
[1610319388684,19.18005603,1273.3,1271.4,1.20544586]
[1610319388982,1.6121,1273.3,1271.4,1.20544586]
[1610319390983,27.8090739,1273.5,1271.4,1.20544586]
[1610319394188,10.216,1273.5,1271.4,1.20544586]
[1610319396089,27.81820393,1273.5,1271.4,1.20544586]
[1610319396688,17.60414877,1273.4,1271.4,1.20544586]
[1610319396891,19.79114877,1273.4,1272.0,47.0899]
[1610319397290,2.187,1273.4,1272.0,47.0899]
[1610319398692,2.187,1273.4,1272.1,1.20535661]
[1610319400097,2.187,1273.4,1272.1,3.57955661]
[1610319401596,2.187,1273.4,1272.2,1.20512516]
[1610319401996,10.216,1273.5,1272.2,1.20512516]
[1610319406200,10.216,1273.5,1272.5,65.6186]
[1610319407402,10.216,1273.5,1272.6,1.20505198]
[1610319411012,3.405,1273.5,1272.6,1.20505198]
[1610319414717,3.405,1273.5,1272.6,65.77345198]
[1610319415619,3.405,1273.5,1272.7,1.20495462]
[1610319422631,21.13375074,1273.5,1272.7,1.20495462]
[1610319423031,3.405,1273.5,1272.7,1.20495462]
[1610319433347,20.99559178,1273.5,1272.7,1.20495462]
[1610319434748,3.405,1273.5,1272.7,1.20495462]
[1610319435248,3.405,1273.5,1272.5,1.20505328]
[1610319439957,20.97240436,1273.5,1272.5,1.20505328]
[1610319440356,50.97240436,1273.5,1272.5,1.20505328]
[1610319440956,17.56260012,1273.4,1272.5,1.20505328]
[1610319441158,17.56260012,1273.4,1272.2,1.20534369]
[1610319441357,17.55280277,1273.3,1272.2,1.20534369]
[1610319441556,19.69090277,1273.3,1272.2,1.20534369]
[1610319443157,17.54084207,1273.2,1272.2,1.20534369]
[1610319443858,47.8031,1273.0,1272.2,1.20534369]
[1610319444056,50.2075,1273.0,1272.2,1.20534369]
[1610319444256,80.2075,1273.0,1272.2,1.20534369]
[1610319444658,2.4044,1273.0,1272.2,1.20534369]
[1610319444860,17.5207311,1272.9,1272.2,1.20534369]
[1610319445061,47.5207311,1272.9,1272.2,1.20534369]
[1610319445460,17.51061585,1272.8,1272.2,1.20534369]
[1610319445659,17.51061585,1272.8,1272.1,1.2056666]
[1610319446059,17.49766951,1272.7,1272.1,1.2056666]
[1610319446259,19.08466951,1272.7,1272.1,1.2056666]
[1610319447064,17.49123341,1272.6,1272.0,61.1586]
[1610319448466,47.49123341,1272.6,1272.0,61.1586]
[1610319448669,30.0,1272.4,1272.0,61.1586]
[1610319448866,49.01678686,1272.4,1272.0,61.1586]
[1610319449669,30.0,1272.2,1272.0,61.1586]
[1610319449867,47.43635786,1272.2,1272.0,61.1586]
[1610319450269,17.42711544,1272.1,1272.0,61.1586]
[1610319450469,18.95971544,1272.1,1272.0,61.1586]
[1610319450668,1.5326,1272.1,1272.0,61.1586]
[1610319451269,31.5326,1272.1,1272.0,61.1586]
[1610319451869,49.85327728,1272.1,1272.0,61.1586]
[1610319452672,31.5326,1272.1,1272.0,61.1586]
[1610319453169,52.7602,1272.0,1271.0,50.1168]
[1610319453371,31.5326,1272.1,1268.6,0.24160021]
[1610319453572,1.5326,1272.1,1268.6,0.24160021]
[1610319453770,17.40745292,1271.7,1268.6,0.24160021]
[1610319453973,18.99035292,1271.7,1268.6,0.24160021]
[1610319454174,18.99035292,1271.7,1268.7,2.19139209]
[1610319454374,1.5829,1271.7,1268.8,30.24157583]
[1610319454675,1.5829,1271.7,1268.9,0.24155889]
[1610319455073,1.5829,1271.7,1269.1,0.24152893]
[1610319455275,1.5829,1271.7,1269.1,2.51042893]
[1610319455475,1.5326,1272.1,1269.2,30.2414886]
[1610319455676,17.43594781,1272.3,1269.2,30.2414886]
[1610319455876,18.98858685,1272.4,1269.3,0.24145377]
[1610319456177,1.5518,1272.4,1269.5,0.24145956]
[1610319456376,1.5518,1272.4,1269.5,2.1645]
[1610319456578,17.44657114,1272.5,1269.5,2.1645]
[1610319456878,4.992,1272.7,1269.5,2.1645]
[1610319456879,17.43897224,1272.4,1269.5,2.1645]
[1610319457079,17.42838891,1272.3,1269.5,2.1645]
[1610319457481,19.58838891,1272.3,1269.5,2.1645]
[1610319457982,17.41323017,1272.2,1269.5,2.1645]
[1610319458181,62.3539,1271.6,1270.3,44.8743]
[1610319458381,17.41323017,1272.2,1269.9,63.7283]
[1610319458581,17.41323017,1272.2,1269.9,65.5968]
[1610319458778,47.41323017,1272.2,1269.9,65.5968]
[1610319458981,17.41323017,1272.2,1269.9,65.5968]
[1610319459182,17.40162565,1272.1,1269.9,65.5968]
[1610319459383,17.39857643,1272.0,1269.9,65.5968]
[1610319459583,17.39857643,1272.0,1270.0,1.2065612]
[1610319459784,17.39960188,1272.1,1270.0,1.2065612]
[1610319460184,17.39859223,1272.0,1270.0,1.2065612]
[1610319460382,4.00959,1270.9,1270.4,4.00959]
[1610319461583,1.776,1271.5,1270.4,4.00959]
[1610319461782,1.776,1271.5,1270.4,5.96399]
[1610319462283,4.00959,1270.9,1270.6,4.00959]
[1610319462684,1.776,1271.5,1270.6,4.00959]
[1610319463684,55.3465,1271.9,1270.7,1.20640442]
[1610319463983,55.3465,1271.9,1270.7,3.22570442]
[1610319464385,4.00959,1271.3,1270.9,4.00959]
[1610319464785,55.3465,1271.9,1270.9,4.00959]
[1610319464986,2.3303,1271.8,1270.9,4.00959]
[1610319466288,4.00959,1271.3,1270.9,4.00959]
[1610319466488,4.00959,1271.3,1271.0,1.20637208]
[1610319466688,2.3303,1271.8,1271.0,1.20637208]
[1610319468291,4.00959,1271.4,1271.1,4.00959]
[1610319468492,2.3303,1271.8,1271.1,4.00959]
[1610319469091,2.3303,1271.8,1271.2,1.20630101]
[1610319470392,55.3465,1271.9,1271.2,1.20630101]
[1610319471993,17.41041646,1272.2,1271.2,1.20630101]
[1610319472193,17.41041646,1272.2,1270.8,1.20644131]
[1610319472393,4.00959,1270.9,1270.8,1.20644131]
[1610319475097,4.00959,1270.9,1270.7,65.3765]
[1610319476000,2.3178,1271.2,1270.7,65.3765]
[1610319476198,2.4655,1271.5,1270.7,65.3765]
[1610319476398,2.4655,1271.5,1271.2,4.00959]
[1610319477097,4.00959,1271.7,1271.2,4.00959]
[1610319477298,2.16,1272.3,1271.2,4.00959]
[1610319477699,65.51249351,1272.5,1271.2,4.00959]
[1610319477900,48.0896,1272.5,1271.3,1.20610177]
[1610319478303,4.00959,1271.8,1271.4,4.00959]
[1610319478501,4.00959,1271.8,1271.3,1.20610177]
[1610319479302,4.00959,1271.8,1271.2,1.20611333]
[1610319480405,5.67139,1272.0,1271.5,4.00959]
[1610319482106,5.67139,1272.0,1271.6,1.20611958]
[1610319484507,5.67139,1272.0,1271.7,4.00959]
[1610319485008,5.67139,1272.0,1271.6,1.20611958]
[1610319486510,5.67139,1272.0,1271.2,1.20634706]
[1610319488514,4.00959,1271.8,1271.3,4.00959]
[1610319489215,4.00959,1271.8,1271.4,1.20638017]
[1610319492415,4.00959,1271.5,1271.4,1.20638017]
[1610319493518,4.00959,1271.5,1270.9,1.20649044]
[1610319494418,4.00959,1271.5,1270.9,5.21608044]
[1610319496217,4.00959,1271.5,1271.0,1.20644472]
[1610319498421,4.00959,1271.2,1271.0,1.20644472]
[1610319498621,2.1527,1271.6,1271.0,1.20644472]
[1610319498823,1.6618,1272.0,1271.0,1.20644472]
[1610319499224,65.2663,1272.1,1271.0,1.20644472]
[1610319500225,73.27027773,1272.3,1271.0,1.20644472]
[1610319500425,4.00959,1271.8,1271.2,4.00959]
[1610319500626,5.78559,1271.8,1271.2,4.00959]
[1610319501627,5.78559,1271.8,1271.3,1.20634305]
[1610319502229,1.776,1271.8,1271.3,1.20634305]
[1610319502427,1.776,1271.8,1271.7,4.00959]
[1610319503131,7.9124,1271.8,1271.7,4.00959]
[1610319503330,4.00959,1272.0,1271.7,4.00959]
[1610319504330,4.00959,1272.0,1271.7,6.39239]
[1610319504530,4.00959,1272.0,1271.9,4.00959]
[1610319505134,6.811,1272.6,1271.9,4.00959]
[1610319505531,4.992,1272.7,1271.9,4.00959]
[1610319505933,4.992,1272.7,1271.9,5.21540196]
[1610319506634,4.00959,1272.4,1272.2,4.00959]
[1610319509337,4.00959,1272.4,1271.7,2.3828]
[1610319510036,4.00959,1272.4,1271.6,56.3492]
[1610319510537,4.00959,1272.2,1272.0,4.00959]
[1610319511536,4.00959,1272.2,1272.1,1.20582855]
[1610319513238,4.992,1272.7,1272.1,1.20582855]
[1610319516942,9.00159,1272.7,1272.2,4.00959]
[1610319517142,9.00159,1272.7,1272.1,1.20582855]
[1610319518541,9.00159,1272.7,1271.7,1.20569873]
[1610319518942,4.00959,1272.5,1272.0,4.00959]
[1610319519142,4.00959,1272.5,1272.1,55.52]
[1610319520443,4.992,1272.7,1272.1,56.72566133]
[1610319520844,9.00159,1272.7,1272.2,4.00959]
[1610319521445,9.00159,1272.7,1272.1,56.72566133]
[1610319521846,9.00159,1272.7,1272.3,1.20573003]
[1610319522948,4.00959,1272.5,1272.3,1.20573003]
[1610319523348,4.00959,1272.5,1272.2,1.20569641]
[1610319523548,4.00959,1272.5,1272.2,51.59169641]
[1610319524250,4.992,1272.7,1272.2,51.59169641]
[1610319524849,4.992,1272.7,1272.3,1.20570706]
[1610319526451,1.587,1272.7,1272.3,1.20570706]
[1610319526851,4.00959,1272.8,1272.3,1.20570706]
[1610319530759,17.42258588,1273.3,1272.3,1.20570706]
[1610319530961,4.00959,1273.0,1272.3,1.20570706]
[1610319531660,6.49099,1273.0,1272.3,1.20570706]
[1610319534866,4.00959,1272.8,1272.3,1.20570706]
[1610319536866,4.00959,1272.8,1272.4,4.00959]
[1610319539267,4.00959,1272.8,1272.5,1.20564446]
[1610319540870,4.00959,1272.6,1272.5,1.20564446]
[1610319543475,4.00959,1272.6,1272.3,1.20587844]
[1610319544973,1.6098,1272.7,1272.3,1.20587844]
[1610319544974,4.00959,1272.4,1272.3,1.20587844]
[1610319545174,6.03939,1272.4,1272.3,1.20587844]
[1610319546173,2.0298,1272.4,1272.3,1.20587844]
[1610319548376,1.6098,1272.7,1272.3,1.20587844]
[1610319548577,2.4814,1273.0,1272.3,1.20587844]
[1610319548975,6.49099,1273.0,1272.3,5.21546844]
[1610319549176,6.49099,1273.0,1272.3,4.00959]
[1610319550378,6.49099,1273.0,1272.4,1.20553423]
[1610319550878,4.00959,1272.8,1272.4,1.20553423]
[1610319551080,2.4814,1273.0,1272.4,1.20553423]
[1610319551478,58.7199,1273.3,1272.4,1.20553423]
[1610319553078,4.00959,1272.8,1272.4,1.20553423]
[1610319553378,5.69069,1272.8,1272.4,1.20553423]
[1610319554980,5.69069,1272.8,1272.5,4.00959]
[1610319555381,4.00959,1272.8,1272.5,4.00959]
[1610319556082,4.00959,1272.8,1272.6,1.205337]
[1610319561995,4.00959,1272.8,1272.4,1.20547025]
[1610319564999,4.00959,1272.6,1272.4,1.20547025]
[1610319565600,2.0713,1273.3,1272.4,1.20547025]
[1610319565801,17.3979779,1273.4,1272.4,1.20547025]
[1610319566001,17.3996799,1273.5,1272.4,1.20547025]
[1610319567005,4.00959,1272.9,1272.5,4.00959]
[1610319568805,4.00959,1272.9,1272.6,1.20532488]
[1610319571008,4.00959,1272.9,1272.7,4.00959]
[1610319573208,4.00959,1272.9,1272.8,1.20536871]
[1610319575912,4.00959,1272.9,1272.6,1.20542442]
[1610319577113,4.00959,1272.9,1272.7,4.00959]
[1610319578713,4.00959,1272.9,1272.8,1.20541188]
[1610319598340,44.5369,1273.3,1272.8,1.20541188]
[1610319599240,4.00959,1273.2,1273.0,4.00959]
[1610319601450,4.00959,1273.2,1273.1,1.20525059]
[1610319603953,5.2858,1273.6,1273.1,1.20525059]
[1610319604153,1.8808,1273.6,1273.1,1.20525059]
[1610319605054,17.46273668,1274.2,1273.1,1.20525059]
[1610319605254,17.46273668,1274.2,1273.4,4.00959]
[1610319606860,17.47970113,1274.3,1273.4,4.00959]
[1610319607262,4.00959,1274.3,1273.9,4.00959]
[1610319609259,4.00959,1274.3,1274.2,4.00959]
[1610319609660,17.50654213,1274.9,1274.2,4.00959]
[1610319610562,17.51535928,1275.0,1274.2,4.00959]
[1610319611263,4.00959,1274.9,1274.5,4.00959]
[1610319611464,6.49289,1274.9,1274.5,4.00959]
[1610319613364,2.4833,1274.9,1274.7,4.00959]
[1610319613764,17.54167456,1275.4,1274.7,4.00959]
[1610319615165,17.55387893,1275.6,1274.7,4.00959]
[1610319615366,4.00959,1275.5,1275.1,4.00959]
[1610319617266,4.00959,1275.5,1275.3,4.00959]
[1610319617466,2.02,1275.7,1275.3,4.00959]
[1610319617866,17.574953,1276.0,1275.3,4.00959]
[1610319618066,17.57786987,1276.1,1275.3,4.00959]
[1610319619070,17.58513343,1276.2,1275.3,4.00959]
[1610319619269,17.58513343,1276.2,1275.8,4.00959]
[1610319620470,17.58513343,1276.2,1275.3,1.9278]
[1610319620670,20.05583343,1276.2,1275.3,1.9278]
[1610319620875,17.57841975,1276.1,1275.3,1.9278]
[1610319621374,17.57841975,1276.1,1275.8,4.00959]
[1610319622776,20.05738818,1276.2,1275.8,4.00959]
[1610319623376,20.05738818,1276.2,1276.0,4.00959]
[1610319624978,2.4707,1276.2,1276.0,4.00959]
[1610319625176,17.59406183,1276.3,1276.0,4.00959]
[1610319625376,17.59308171,1276.2,1276.0,4.00959]
[1610319625576,17.59409653,1276.3,1276.0,4.00959]
[1610319626678,21.622083,1276.5,1276.0,4.00959]
[1610319627077,4.00959,1276.5,1276.0,4.00959]
[1610319627379,4.00959,1276.5,1276.4,4.00959]
[1610319628279,17.62815006,1276.8,1276.4,4.00959]
[1610319628680,54.0485,1277.0,1276.4,4.00959]
[1610319628681,17.6348895,1276.9,1276.4,4.00959]
[1610319629283,4.00959,1276.8,1276.7,4.00959]
[1610319630085,17.6348895,1276.9,1276.7,4.00959]
[1610319630486,71.68651177,1277.0,1276.7,4.00959]
[1610319630887,54.0485,1277.0,1276.7,4.00959]
[1610319631287,71.69423177,1277.0,1276.9,4.00959]
[1610319631788,17.64573177,1277.0,1276.9,4.00959]
[1610319631990,17.6480823,1277.1,1276.9,4.00959]
[1610319633992,19.36788661,1277.2,1276.9,4.00959]
[1610319634393,17.64788555,1277.1,1276.9,4.00959]
[1610319634993,17.6414116,1277.0,1276.9,4.00959]
[1610319635293,21.6510016,1277.0,1276.9,4.00959]
[1610319636794,4.00959,1277.0,1276.7,47.823]
[1610319636994,21.65449592,1277.0,1276.7,47.823]
[1610319637298,4.00959,1276.8,1276.7,47.823]
[1610319638299,4.00959,1276.8,1276.4,49.0124]
[1610319639299,4.00959,1276.6,1276.4,49.0124]
[1610319644108,21.62388311,1276.6,1276.4,49.0124]
[1610319644709,17.6074041,1276.5,1276.4,49.0124]
[1610319646013,5.87249,1276.6,1276.4,49.0124]
[1610319648112,18.50903053,1276.5,1276.4,49.0124]
[1610319648311,5.87249,1276.6,1276.4,49.0124]
[1610319648511,30.0,1276.5,1276.4,49.0124]
[1610319648711,35.88080385,1276.5,1276.4,49.0124]
[1610319649914,35.88080385,1276.5,1275.6,50.5339]
[1610319650115,35.88080385,1276.5,1272.6,0.24086903]
[1610319650316,35.88080385,1276.5,1272.5,0.24089382]
[1610319650317,55.2762666,1276.5,1272.5,0.24089382]
[1610319650514,30.0,1276.3,1272.5,0.24089382]
[1610319650714,17.53988282,1275.3,1272.4,65.5814]
[1610319650915,19.64078282,1275.3,1272.4,65.5814]
[1610319651115,49.64078282,1275.3,1272.4,67.7874]
[1610319651315,17.5316878,1275.2,1272.4,67.7874]
[1610319651516,4.00959,1273.9,1273.6,4.00959]
[1610319652915,4.00959,1273.9,1273.7,1.20384527]
[1610319653316,4.00959,1273.9,1273.7,2.87954527]
[1610319654416,4.00959,1273.9,1273.8,1.20410941]
[1610319655617,4.00959,1273.9,1273.3,6.15579]
[1610319656917,52.4032,1274.1,1273.3,6.15579]
[1610319657117,52.4032,1274.1,1273.4,1.20403831]
[1610319657518,52.4032,1274.1,1273.6,4.00959]
[1610319657720,52.4032,1274.1,1273.6,6.36119]
[1610319658718,52.4032,1274.1,1273.7,1.20357697]
[1610319659418,35.1692,1274.1,1273.7,1.20357697]
[1610319659618,6.11049,1275.3,1274.0,4.00959]
[1610319659818,17.57932585,1275.7,1274.0,5.77119]
[1610319660018,17.59317821,1275.8,1274.0,5.77119]
[1610319660219,17.5971977,1275.9,1274.0,71.03499]
[1610319660618,17.60160876,1276.0,1274.0,71.03499]
[1610319660920,79.66610416,1276.1,1274.0,71.03499]
[1610319661320,62.0587,1276.1,1274.1,1.20298161]
[1610319661518,66.06829,1276.1,1275.6,4.00959]
[1610319662319,62.0587,1276.1,1275.6,4.00959]
[1610319663519,62.0587,1276.1,1275.9,4.00959]
[1610319664521,17.65608566,1276.6,1275.9,4.00959]
[1610319664920,17.66441258,1276.7,1275.9,4.00959]
[1610319665622,17.66929004,1276.8,1275.7,1.9669]
[1610319665821,17.66691828,1276.7,1275.7,1.9669]
[1610319666222,17.65751742,1276.6,1275.7,1.9669]
[1610319666422,19.61771742,1276.6,1275.7,1.9669]
[1610319666622,17.6522131,1276.5,1275.7,1.9669]
[1610319667021,17.6522131,1276.5,1275.4,2.3553]
[1610319667222,17.64412151,1276.4,1275.4,2.3553]
[1610319667423,17.64412151,1276.4,1274.0,1.7616]
[1610319667625,4.00959,1275.6,1275.3,4.00959]
[1610319669324,4.00959,1275.6,1273.6,2.3516]
[1610319669525,4.00959,1275.0,1274.5,4.00959]
[1610319670124,4.00959,1275.0,1273.6,2.3516]
[1610319670324,4.00959,1275.0,1272.5,0.2408595]
[1610319670525,4.00959,1275.0,1272.4,0.24087829]
[1610319670924,4.00959,1275.0,1272.3,0.24089128]
[1610319671324,4.00959,1275.0,1272.7,3.48795175]
[1610319671526,2.5084,1275.1,1273.5,4.00959]
[1610319671527,4.00959,1274.0,1273.5,4.00959]
[1610319672725,4.00959,1274.0,1273.6,1.2039098]
[1610319672926,4.00959,1274.0,1273.6,3.4745098]
[1610319673726,1.6967,1274.8,1273.6,3.4745098]
[1610319674127,1.6967,1274.8,1273.7,1.20390141]
[1610319674927,8.2863,1275.1,1273.7,1.20390141]
[1610319674928,2.5084,1275.1,1273.7,1.20390141]
[1610319675130,17.59004347,1275.3,1273.7,1.20390141]
[1610319675328,1.7031,1275.4,1273.7,1.20390141]
[1610319675529,4.00959,1274.7,1274.1,4.00959]
[1610319676533,1.5539,1275.6,1274.1,4.00959]
[1610319676733,1.5539,1275.6,1274.1,5.71369]
[1610319677135,19.85611653,1275.9,1274.1,5.71369]
[1610319677336,2.2266,1275.9,1274.2,1.20319237]
[1610319677535,4.00959,1275.1,1274.6,4.00959]
[1610319678738,4.00959,1275.1,1274.7,1.20334222]
[1610319679539,4.00959,1274.8,1274.7,1.20334222]
[1610319681339,4.00959,1274.8,1274.3,1.20364031]
[1610319681539,4.00959,1274.4,1274.3,1.20364031]
[1610319686744,4.00959,1274.4,1273.9,1.2036543]
[1610319687447,2.0675,1275.0,1273.9,1.2036543]
[1610319687645,4.00959,1274.8,1273.9,5.2132443]
[1610319687847,4.00959,1274.8,1273.9,6.9416443]
[1610319689649,4.00959,1274.3,1273.9,6.9416443]
[1610319690049,19.26759907,1275.3,1274.0,1.20359322]
[1610319690950,17.69191379,1275.2,1274.0,1.20359322]
[1610319691150,47.69191379,1275.2,1274.0,1.20359322]
[1610319691350,30.0,1275.2,1274.0,1.20359322]
[1610319691551,19.27658559,1275.3,1274.0,1.20359322]
[1610319691751,4.00959,1274.5,1274.1,4.00959]
[1610319692753,4.00959,1274.5,1274.2,1.20357094]
[1610319692956,4.00959,1274.5,1274.2,3.50647094]